fUSD/lending_fUSD_20240531
["ID","MTS","AMOUNT","RATE_DAILY","PERIOD"]
[328343933,1717197033602,-211.6298137,0.00031036,7]
[328343934,1717197033611,-152.62495908,0.00031071,7]
[328343935,1717197033621,-211.6298137,0.00031071,7]
[328343936,1717197033630,-292.35378627,0.00031075,7]
[328343937,1717197033639,-155.28676277,0.00031087,7]
[328343938,1717197033649,-154.72329648,0.00031102,7]
[328343939,1717197033659,-211.6298137,0.00031112,7]
[328343940,1717197033668,-227.105825,0.00031118,2]
[328343941,1717197033677,-227.105824,0.00031118,2]
[328343942,1717197033686,-227.105825,0.00031118,2]
[328343943,1717197033695,-172.401164,0.00031118,2]
[328343944,1717197033704,-172.401163,0.00031118,2]
[328343945,1717197033714,-172.401164,0.00031118,2]
[328343946,1717197033723,-154.72329648,0.00031127,7]
[328343947,1717197033733,-8003.85272027,0.00031155,7]
[328343948,1717197033742,-155.28676277,0.00031157,7]
[328343949,1717197033751,-150.0,0.00031185,7]
[328343950,1717197033761,-724.90489731,0.00031187,7]
[328343951,1717197033770,-292.35378627,0.00031214,7]
[328343952,1717197033780,-166.66666667,0.00031215,7]
[328343953,1717197033789,-164.33056681,0.0003122,7]
[328343954,1717197033798,-150.0,0.00031223,7]
[328343955,1717197033807,-292.35378627,0.00031225,7]
[328343956,1717197033817,-154.72329648,0.00031228,7]
[328343957,1717197033831,-164.33056681,0.00031241,7]
[328343958,1717197033841,-154.80833393,0.00031248,7]
[328343959,1717197033850,-8003.85272027,0.00031272,7]
[328343960,1717197033859,-292.35378627,0.00031282,7]
[328343961,1717197033870,-2527.83982935,0.00031289,10]
[328343962,1717197033879,-155.0,0.000313,4]
[328343963,1717197033889,-5060.44477644,0.00031303,4]
[328343970,1717197038264,-1383.46980156,0.00014961,2]
[328343971,1717197038274,-141.91544239,0.00031303,4]
[328343972,1717197038284,-211.6298137,0.00031309,7]
[328343973,1717197038294,-155.48204463,0.00031311,7]
[328343974,1717197038303,-155.28676277,0.00031329,7]
[328343975,1717197038314,-150.0,0.0003133,21]
[328343976,1717197038324,-416.48,0.0003137,2]
[328343977,1717197038333,-416.48,0.0003137,2]
[328343978,1717197038342,-602.49,0.0003137,2]
[328343979,1717197038351,-164.33056681,0.00031377,7]
[328343980,1717197038361,-200.86470792,0.00031388,7]
[328343981,1717197038370,-158.03040467,0.00031394,7]
[328343982,1717197038380,-472.30551812,0.00031408,7]
[328343983,1717197038389,-164.33056681,0.00031412,7]
[328343984,1717197038399,-8003.85272027,0.00031425,7]
[328343985,1717197038409,-211.6298137,0.00031449,7]
[328343986,1717197038419,-151.77973416,0.00031468,7]
[328343987,1717197038428,-151.77973416,0.00031486,7]
[328343988,1717197038438,-8003.85272027,0.0003149,7]
[328343989,1717197038447,-155.28676277,0.0003149,7]
[328343990,1717197038456,-155.48204463,0.0003149,7]
[328343991,1717197038465,-184.57658925,0.00031495,7]
[328343992,1717197038474,-292.35378627,0.00031497,7]
[328343993,1717197038483,-227.105825,0.00031498,2]
[328343994,1717197038493,-227.105824,0.00031498,2]
[328343995,1717197038504,-227.105825,0.00031498,2]
[328343996,1717197038514,-154.57215213,0.00031498,7]
[328343997,1717197038523,-724.90489731,0.00031509,7]
[328343998,1717197038534,-724.90489731,0.0003151,7]
[328343999,1717197038543,-161.72507466,0.00031528,7]
[328344000,1717197038552,-8003.85272027,0.00031536,7]
[328344001,1717197038561,-159.25974204,0.00031546,7]
[328344002,1717197038571,-211.6298137,0.00031557,7]
[328344003,1717197038580,-154.39,0.00031568,2]
[328344004,1717197038590,-8003.85272027,0.00031572,7]
[328344005,1717197038599,-724.90489731,0.00031578,7]
[328344006,1717197038609,-8003.85272027,0.0003159,7]
[328344007,1717197038619,-166.66666666,0.00031621,7]
[328344008,1717197038628,-159.25974204,0.00031623,7]
[328344009,1717197038638,-1094.73660363,0.00031633,4]
[328344010,1717197038647,-352.63,0.00031644,2]
[328344012,1717197038657,-525.17,0.00031644,2]
[328344014,1717197038666,-525.17,0.00031644,2]
[328344016,1717197038675,-525.17,0.00031644,2]
[328344018,1717197038684,-525.17,0.00031644,2]
[328344020,1717197038693,-525.17,0.00031644,2]
[328344021,1717197038702,-525.17,0.00031644,2]
[328344022,1717197038711,-525.17,0.00031644,2]
[328344023,1717197038719,-525.17,0.00031644,2]
[328344024,1717197038728,-525.17,0.00031644,2]
[328344025,1717197038738,-166.66666666,0.00031655,7]
[328344026,1717197038747,-154.72329648,0.00031657,7]
[328344027,1717197038757,-214.0,0.00031678,2]
[328344028,1717197038766,-166.66666666,0.00031704,7]
[328344029,1717197038776,-166.66666668,0.00031713,7]
[328344030,1717197038785,-155.28676277,0.00031716,7]
[328344031,1717197038794,-151.77973416,0.00031734,7]
[328344032,1717197038803,-8003.85272027,0.00031745,7]
[328344033,1717197038812,-472.30551812,0.00031753,7]
[328344034,1717197038822,-478.49,0.00031766,2]
[328344035,1717197038836,-188.839,0.00031776,2]
[328344036,1717197038845,-197.514,0.00031776,2]
[328344037,1717197038854,-292.35378627,0.0003178,7]
[328344038,1717197038863,-2000.0,0.000318,2]
[328344039,1717197038874,-176.32029517,0.00031809,3]
[328344040,1717197038883,-3788.286622,0.0003181,2]
[328344041,1717197038892,-164.33056681,0.00031829,7]
[328344042,1717197038903,-8003.85272027,0.00031857,7]
[328344043,1717197038913,-227.105825,0.00031877,2]
[328344044,1717197038922,-227.105824,0.00031877,2]
[328344045,1717197038931,-227.105825,0.00031877,2]
[328344046,1717197038941,-172.401164,0.00031877,2]
[328344047,1717197038950,-173.321194,0.00031877,2]
[328344048,1717197038959,-172.401163,0.00031877,2]
[328344049,1717197038969,-173.321194,0.00031877,2]
[328344050,1717197038978,-172.401164,0.00031877,2]
[328344051,1717197038987,-5032.28277985,0.00031896,7]
[328344052,1717197038999,-295.78,0.00031896,7]
[328344053,1717197040594,-7488.54,0.00031425,5]
[328344054,1717197040603,-2675.78994042,0.00031896,7]
[328344055,1717197040612,-472.30551812,0.00031899,7]
[328344056,1717197040622,-155.28676277,0.00031901,7]
[328344057,1717197040631,-292.35378627,0.00031919,7]
[328344058,1717197040640,-155.28676277,0.00031977,7]
[328344059,1717197040649,-151.0,0.00031996,7]
[328344060,1717197040659,-702.0,0.00032,7]
[328344061,1717197040668,-472.30551812,0.00032006,7]
[328344062,1717197040677,-154.72329648,0.00032035,7]
[328344063,1717197040687,-164.33056681,0.00032044,7]
[328344064,1717197040696,-8003.85272027,0.00032096,7]
[328344065,1717197040706,-292.35378627,0.00032097,7]
[328344066,1717197040715,-152.62495908,0.0003214,7]
[328344067,1717197040724,-292.35378627,0.00032147,7]
[328344068,1717197040733,-162.87470479,0.00032157,7]
[328344069,1717197040742,-163.60596468,0.00032163,7]
[328344070,1717197040751,-150.0,0.00032185,7]
[328344071,1717197040760,-25000.0,0.00032188,2]
[328344072,1717197040769,-152.62495908,0.00032199,7]
[328344073,1717197040779,-472.30551812,0.000322,7]
[328344074,1717197040787,-1000.0,0.000322,2]
[328344075,1717197040796,-472.30551812,0.00032205,7]
[328344076,1717197040805,-211.6298137,0.00032205,7]
[328344077,1717197040814,-4129.65,0.00032226,2]
[328344078,1717197040823,-2527.83982935,0.00032244,10]
[328344079,1717197040836,-151.77973416,0.00032265,7]
[328344080,1717197040845,-12500.0,0.00032267,2]
[328344081,1717197040854,-164.33056681,0.0003231,7]
[328344082,1717197040863,-155.48204463,0.00032314,7]
[328344083,1717197040873,-153.16583405,0.00032316,7]
[328344084,1717197040882,-1738.55,0.00032329,2]
[328344085,1717197040891,-415.6,0.00032329,2]
[328344086,1717197040899,-724.90489731,0.00032335,7]
[328344087,1717197040912,-1000.0,0.00032339,2]
[328344088,1717197040922,-292.35378627,0.00032339,7]
[328344089,1717197040931,-164.33056681,0.00032343,7]
[328344090,1717197040939,-150.0,0.00032347,2]
[328344091,1717197040954,-150.0,0.0003236,2]
[328344092,1717197040966,-150.0,0.00032384,7]
[328344093,1717197040978,-161.72507466,0.00032388,7]
[328344094,1717197040989,-220.66423378,0.00032392,7]
[328344095,1717197041002,-154.72329648,0.00032396,7]
[328344096,1717197041012,-159.25974204,0.00032397,7]
[328344097,1717197041027,-1000.0,0.000324,2]
[328344098,1717197041038,-155.48204463,0.00032428,7]
[328344099,1717197041049,-150.0,0.00032447,2]
[328344100,1717197041059,-154.72329648,0.00032455,7]
[328344101,1717197041071,-8003.85272027,0.00032457,7]
[328344102,1717197041084,-2725.85,0.00032459,2]
[328344103,1717197041095,-150.0,0.00032465,2]
[328344104,1717197041106,-525.17,0.00032466,2]
[328344105,1717197041118,-1044.21,0.00032466,2]
[328344106,1717197041130,-525.17,0.00032466,2]
[328344107,1717197041142,-525.17,0.00032466,2]
[328344108,1717197041153,-525.17,0.00032466,2]
[328344109,1717197041165,-525.17,0.00032466,2]
[328344110,1717197041177,-525.17,0.00032466,2]
[328344111,1717197041187,-525.17,0.00032466,2]
[328344112,1717197041198,-525.17,0.00032466,2]
[328344113,1717197041214,-525.17,0.00032466,2]
[328344114,1717197041225,-525.17,0.00032466,2]
[328344115,1717197041236,-517.49,0.00032466,2]
[328344116,1717197041248,-150.0,0.00032466,2]
[328344117,1717197041258,-163.84,0.00032466,2]
[328344118,1717197041269,-352.63,0.00032466,2]
[328344119,1717197041280,-525.17,0.00032466,2]
[328344120,1717197041290,-150.0,0.00032466,2]
[328344121,1717197041300,-421.7,0.00032466,2]
[328344122,1717197041310,-150.0,0.00032466,2]
[328344123,1717197041321,-421.7,0.00032466,2]
[328344124,1717197041332,-150.0,0.00032466,2]
[328344125,1717197041342,-163.84,0.00032466,2]
[328344126,1717197041353,-525.17,0.00032466,2]
[328344127,1717197041365,-352.63,0.00032466,2]
[328344128,1717197041376,-525.17,0.00032466,2]
[328344129,1717197041388,-421.7,0.00032466,2]
[328344130,1717197041398,-163.84,0.00032466,2]
[328344131,1717197041411,-150.0,0.00032466,2]
[328344132,1717197041423,-352.63,0.00032466,2]
[328344133,1717197041434,-150.0,0.00032466,2]
[328344134,1717197041447,-421.7,0.00032466,2]
[328344135,1717197041458,-163.84,0.00032466,2]
[328344136,1717197041469,-150.0,0.00032466,2]
[328344137,1717197041478,-150.0,0.00032466,2]
[328344138,1717197041488,-525.17,0.00032466,2]
[328344139,1717197041498,-352.63,0.00032466,2]
[328344140,1717197041508,-150.0,0.00032466,2]
[328344141,1717197041519,-150.0,0.00032466,2]
[328344142,1717197041529,-525.17,0.00032466,2]
[328344143,1717197041540,-421.7,0.00032466,2]
[328344144,1717197041551,-163.84,0.00032466,2]
[328344145,1717197041562,-352.63,0.00032466,2]
[328344146,1717197041574,-421.7,0.00032466,2]
[328344147,1717197041584,-150.0,0.00032466,2]
[328344148,1717197041594,-352.63,0.00032466,2]
[328344149,1717197041605,-525.17,0.00032466,2]
[328344150,1717197041616,-162.94,0.00032466,2]
[328344151,1717197041626,-150.0,0.00032466,2]
[328344152,1717197041637,-421.7,0.00032466,2]
[328344153,1717197041649,-525.17,0.00032466,2]
[328344154,1717197041661,-150.0,0.00032466,2]
[328344155,1717197041671,-150.0,0.00032466,2]
[328344156,1717197041681,-352.63,0.00032466,2]
[328344157,1717197041692,-12500.0,0.00032506,2]
[328344158,1717197041702,-164.33056681,0.00032538,7]
[328344159,1717197041713,-724.90489731,0.00032539,7]
[328344160,1717197041724,-2220.26,0.00032548,30]
[328344161,1717197041734,-159.25974204,0.00032559,7]
[328344162,1717197041745,-151.0,0.00032563,2]
[328344163,1717197041756,-161.72507466,0.00032581,7]
[328344164,1717197041768,-155.28676277,0.00032603,7]
[328344165,1717197041779,-155.48204463,0.00032621,7]
[328344166,1717197041790,-211.6298137,0.00032626,7]
[328344167,1717197041800,-211.6298137,0.00032629,7]
[328344168,1717197041812,-8003.85272027,0.00032637,7]
[328344169,1717197041823,-472.30551812,0.00032646,7]
[328344170,1717197041838,-10000.0,0.00032664,2]
[328344171,1717197041849,-250.5090491,0.00032689,7]
[328344172,1717197041860,-158.03040467,0.0003269,7]
[328344173,1717197041872,-151.0,0.0003269,7]
[328344174,1717197041883,-151.0,0.0003269,7]
[328344175,1717197041893,-151.0,0.0003269,7]
[328344176,1717197041909,-2500.0,0.00032699,2]
[328344177,1717197041920,-187.73058253,0.00032703,2]
[328344178,1717197041930,-2527.83982935,0.00032722,10]
[328344179,1717197041941,-478.49,0.00032723,2]
[328344180,1717197041951,-352.352018,0.00032725,7]
[328344181,1717197041961,-160.56462416,0.00032733,7]
[328344182,1717197041971,-8003.85272027,0.00032733,7]
[328344183,1717197041982,-150.0,0.00032734,2]
[328344184,1717197041992,-292.35378627,0.00032735,7]
[328344185,1717197042002,-211.6298137,0.00032743,7]
[328344186,1717197042012,-211.6298137,0.00032746,7]
[328344187,1717197042023,-2500.0,0.00032747,2]
[328344188,1717197042034,-172.43935993,0.00032758,7]
[328344189,1717197042045,-164.33056681,0.00032761,7]
[328344190,1717197042055,-500.0,0.00032769,2]
[328344191,1717197042066,-200.0,0.00032769,2]
[328344192,1717197042076,-151.77973416,0.00032779,7]
[328344193,1717197042087,-211.6298137,0.00032794,7]
[328344194,1717197042098,-292.35378627,0.00032796,7]
[328344195,1717197042108,-292.35378627,0.00032802,7]
[328344196,1717197042118,-150.0,0.00032824,2]
[328344197,1717197042128,-151.77973416,0.00032834,7]
[328344198,1717197042138,-153.16583405,0.00032836,7]
[328344199,1717197042149,-166.66666667,0.00032845,7]
[328344200,1717197042160,-153.15239117,0.0003285,7]
[328344201,1717197042170,-164.33056681,0.00032859,7]
[328344202,1717197042181,-150.0,0.00032865,7]
[328344203,1717197042191,-180.277158,0.00032876,11]
[328344204,1717197042202,-403.27366081,0.00032876,11]
[328344205,1717197042212,-500.0,0.00032876,11]
[328344206,1717197042223,-500.0,0.00032876,11]
[328344207,1717197042233,-500.0,0.00032876,11]
[328344208,1717197042243,-500.0,0.00032876,11]
[328344209,1717197042254,-500.0,0.00032876,11]
[328344210,1717197042264,-500.0,0.00032876,11]
[328344211,1717197042274,-500.0,0.00032876,11]
[328344212,1717197042286,-500.0,0.00032876,11]
[328344213,1717197042297,-500.0,0.00032876,11]
[328344214,1717197042309,-500.0,0.00032876,11]
[328344215,1717197042319,-500.0,0.00032876,11]
[328344216,1717197042331,-500.0,0.00032876,11]
[328344217,1717197042342,-500.0,0.00032876,11]
[328344218,1717197042352,-500.0,0.00032876,11]
[328344219,1717197042363,-500.0,0.00032876,11]
[328344220,1717197042374,-500.0,0.00032876,11]
[328344221,1717197042384,-500.0,0.00032876,11]
[328344222,1717197042395,-252.6,0.00032876,11]
[328344223,1717197042406,-500.0,0.00032876,11]
[328344224,1717197042417,-500.0,0.00032876,2]
[328344225,1717197042428,-500.0,0.00032876,2]
[328344229,1717197042439,-500.0,0.00032876,2]
[328344232,1717197042450,-500.0,0.00032876,11]
[328344234,1717197042460,-500.0,0.00032876,11]
[328344236,1717197042470,-553.7,0.00032876,11]
[328344238,1717197042479,-500.0,0.00032876,11]
[328344240,1717197042489,-500.0,0.00032876,11]
[328344242,1717197042498,-634.29,0.00032876,11]
[328344244,1717197042507,-500.0,0.00032876,11]
[328344246,1717197042518,-500.0,0.00032876,11]
[328344248,1717197042528,-500.0,0.00032876,11]
[328344250,1717197042538,-850.96,0.00032876,11]
[328344269,1717197042724,-850.96,0.00032876,11]
[328344271,1717197042734,-850.96,0.00032876,11]
[328344273,1717197042744,-500.0,0.00032876,11]
[328344275,1717197042753,-500.0,0.00032876,11]
[328344277,1717197042763,-500.0,0.00032876,11]
[328344278,1717197042772,-500.0,0.00032876,11]
[328344279,1717197042782,-500.0,0.00032876,11]
[328344280,1717197042791,-500.0,0.00032876,11]
[328344281,1717197042800,-500.0,0.00032876,11]
[328344282,1717197042809,-500.0,0.00032876,11]
[328344283,1717197042818,-500.0,0.00032876,11]
[328344284,1717197042831,-500.0,0.00032876,11]
[328344285,1717197042841,-500.0,0.00032876,11]
[328344286,1717197042850,-500.0,0.00032876,11]
[328344287,1717197042859,-8003.85272027,0.00032879,7]
[328344288,1717197042869,-151.0,0.00032879,7]
[328344289,1717197042878,-151.0,0.00032879,7]
[328344290,1717197042887,-151.0,0.00032879,7]
[328344291,1717197042896,-151.0,0.00032879,7]
[328344292,1717197042909,-1153.229946,0.00032879,7]
[328344293,1717197042919,-1153.229946,0.00032879,7]
[328344294,1717197042928,-155.28676277,0.00032887,7]
[328344295,1717197042938,-184.57658925,0.00032895,7]
[328344296,1717197042947,-1000.0,0.000329,2]
[328344297,1717197042957,-2000.0,0.000329,2]
[328344298,1717197042967,-1250.14015,0.000329,2]
[328344299,1717197042976,-1183.37776132,0.00032904,2]
[328344300,1717197042985,-292.35378627,0.00032906,7]
[328344301,1717197042996,-2653.999498,0.0003291,2]
[328344302,1717197043005,-3782.57695425,0.00032935,4]
[328344303,1717197043015,-259.80255236,0.00032935,4]
[328344304,1717197043024,-173.19217151,0.00032935,4]
[328344305,1717197043034,-177.0,0.0003295,24]
[328344306,1717197043044,-3782.57695418,0.00032959,4]
[328344307,1717197043053,-156.12619128,0.00032965,2]
[328344308,1717197043062,-3782.57695418,0.00032983,5]
[328344309,1717197043071,-160.56462416,0.00032999,7]
[328344310,1717197043082,-305.06064231,0.00033,4]
[328344311,1717197043091,-240.00059308,0.00033,4]
[328344312,1717197043100,-487.0,0.00033,18]
[328344313,1717197043110,-344.0,0.00033,6]
[328344314,1717197043119,-160.0,0.00033,6]
[328344315,1717197043128,-50000.0,0.00033,2]
[328344316,1717197043137,-723.535827,0.00033,2]
[328344317,1717197043146,-293.60191069,0.00033,6]
[328344318,1717197043200,-331.63639484,0.00032459,5]
[328344319,1717197043232,-49.36360516,0.00032459,5]
[328344320,1717197043241,-352.352018,0.00032725,7]
[328344321,1717197043250,-395.39808931,0.00033,6]
[328344322,1717197043259,-284.03178114,0.00033,2]
[328344323,1717197043274,-965.96821886,0.00033,2]
[328344324,1717197043283,-1664.81,0.00033,2]
[328344325,1717197043292,-150.0,0.00033,7]
[328344326,1717197043301,-259.80255232,0.00033001,5]
[328344327,1717197043311,-3782.57695418,0.00033007,5]
[328344328,1717197043320,-724.90489731,0.0003301,7]
[328344329,1717197043330,-472.30551812,0.0003301,7]
[328344330,1717197043339,-173.19217149,0.00033023,5]
[328344331,1717197043347,-1905.5569506,0.00033028,2]
[328344332,1717197043356,-53620.8802245,0.00033028,2]
[328344333,1717197043366,-3782.57695418,0.00033031,5]
[328344334,1717197043374,-5503.7391893,0.00033033,2]
[328344335,1717197043384,-866.6421141,0.00033033,2]
[328344336,1717197043395,-631.7651753,0.00033033,2]
[328344337,1717197043405,-500.0,0.00033033,2]
[328344338,1717197043415,-500.0,0.00033033,11]
[328344339,1717197043424,-500.0,0.00033034,11]
[328344340,1717197043435,-183.57173138,0.00033034,11]
[328344341,1717197043445,-500.0,0.00033034,11]
[328344342,1717197043457,-850.96,0.00033034,11]
[328344343,1717197043468,-197.16,0.00033034,11]
[328344344,1717197043478,-500.0,0.00033034,11]
[328344345,1717197043488,-500.0,0.00033034,11]
[328344346,1717197043498,-500.0,0.00033034,11]
[328344347,1717197043507,-107426.57778067,0.00033035,30]
[328344348,1717197043516,-151.0,0.00033035,7]
[328344349,1717197043526,-219.761133,0.00033035,7]
[328344350,1717197043535,-151.0,0.00033035,7]
[328344351,1717197043544,-243.99386,0.00033035,7]
[328344352,1717197043553,-151.0,0.00033035,7]
[328344353,1717197043562,-243.399199,0.00033035,7]
[328344354,1717197043571,-151.0,0.00033035,7]
[328344355,1717197043581,-172.477569,0.00033035,7]
[328344356,1717197043590,-270.019014,0.00033035,7]
[328344357,1717197043598,-151.0,0.00033035,7]
[328344358,1717197043607,-151.0,0.00033035,7]
[328344359,1717197043616,-151.0,0.00033035,7]
[328344360,1717197043625,-151.0,0.00033035,7]
[328344361,1717197043634,-173.6549,0.00033035,7]
[328344362,1717197043643,-151.0,0.00033035,7]
[328344363,1717197043653,-151.0,0.00033035,7]
[328344364,1717197043663,-151.0,0.00033035,7]
[328344365,1717197043672,-151.0,0.00033035,7]
[328344366,1717197043681,-151.0,0.00033035,7]
[328344367,1717197043690,-151.0,0.00033035,7]
[328344368,1717197043700,-151.0,0.00033035,7]
[328344369,1717197043709,-151.0,0.00033035,7]
[328344370,1717197043719,-151.0,0.00033035,7]
[328344371,1717197043728,-151.0,0.00033035,7]
[328344372,1717197043737,-151.0,0.00033035,7]
[328344373,1717197043746,-151.0,0.00033035,7]
[328344374,1717197043755,-1153.229946,0.00033035,7]
[328344375,1717197043764,-1153.229946,0.00033035,7]
[328344376,1717197043773,-151.0,0.00033035,7]
[328344377,1717197043782,-151.0,0.00033035,7]
[328344378,1717197043792,-352.352018,0.00033035,7]
[328344379,1717197043801,-352.352018,0.00033035,7]
[328344380,1717197043810,-7383.98,0.00033035,5]
[328344381,1717197043819,-7461.04,0.00033035,5]
[328344382,1717197043833,-150.0,0.00033055,2]
[328344383,1717197043842,-3782.57695418,0.00033055,5]
[328344384,1717197043851,-259.80255232,0.00033068,5]
[328344385,1717197043860,-150.0,0.00033068,2]
[328344386,1717197043871,-3782.57695418,0.0003308,5]
[328344387,1717197043880,-166.66666666,0.00033082,7]
[328344388,1717197043889,-172.43935993,0.00033082,7]
[328344389,1717197043898,-166.50001665,0.00033089,7]
[328344390,1717197043910,-159.25974204,0.00033089,7]
[328344391,1717197043919,-155.28676277,0.00033092,7]
[328344392,1717197043928,-652.9292267,0.000331,2]
[328344393,1717197043937,-1100.0,0.000331,3]
[328344394,1717197043946,-1100.0,0.000331,3]
[328344395,1717197043955,-1100.0,0.000331,3]
[328344396,1717197043964,-1100.0,0.000331,3]
[328344397,1717197043973,-1100.0,0.000331,3]
[328344398,1717197043982,-1100.0,0.000331,3]
[328344399,1717197043991,-1100.0,0.000331,3]
[328344400,1717197044000,-1100.0,0.000331,3]
[328344401,1717197044009,-1100.0,0.000331,3]
[328344402,1717197044018,-1100.0,0.000331,3]
[328344403,1717197044027,-3782.57695418,0.00033104,5]
[328344404,1717197044036,-173.19217149,0.00033112,5]
[328344405,1717197044045,-472.30551812,0.00033121,7]
[328344406,1717197044054,-3782.57695418,0.00033128,5]
[328344407,1717197044063,-472.30551812,0.00033133,7]
[328344408,1717197044072,-259.80255232,0.00033134,5]
[328344409,1717197044082,-150.0,0.00033139,7]
[328344410,1717197044092,-435.67,0.00033148,2]
[328344411,1717197044101,-211.6298137,0.0003315,7]
[328344412,1717197044110,-3782.57695418,0.00033152,5]
[328344413,1717197044119,-161.72507466,0.00033153,7]
[328344414,1717197044128,-3782.57695418,0.00033176,5]
[328344415,1717197044137,-626.34119279,0.00033176,11]
[328344416,1717197044146,-150.0,0.0003319,2]
[328344417,1717197044155,-211.6298137,0.00033191,7]
[328344418,1717197044165,-166.83499667,0.00033193,7]
[328344419,1717197044174,-155.963799,0.00033199,7]
[328344420,1717197044183,-151.0,0.00033199,7]
[328344421,1717197044192,-500.0,0.00033199,2]
[328344422,1717197044201,-500.0,0.00033199,2]
[328344423,1717197044210,-500.0,0.00033199,11]
[328344424,1717197044219,-500.0,0.00033199,11]
[328344425,1717197044228,-500.0,0.00033199,11]
[328344426,1717197044237,-850.96,0.00033199,11]
[328344427,1717197044246,-500.0,0.00033199,11]
[328344428,1717197044255,-210.92,0.00033199,11]
[328344429,1717197044264,-500.0,0.00033199,11]
[328344430,1717197044273,-208098.07496705,0.000332,2]
[328344431,1717197044282,-497.0,0.000332,18]
[328344432,1717197044291,-3782.57695418,0.000332,5]
[328344433,1717197044301,-176.32029516,0.000332,5]
[328344434,1717197044310,-259.80255232,0.000332,5]
[328344435,1717197044319,-173.19217149,0.000332,5]
[328344436,1717197044332,-185.020307,0.000332,7]
[328344437,1717197044341,-219.761133,0.000332,7]
[328344438,1717197044350,-151.0,0.000332,7]
[328344439,1717197044359,-284.562363,0.000332,7]
[328344440,1717197044368,-151.0,0.000332,7]
[328344441,1717197044378,-151.0,0.000332,7]
[328344442,1717197044387,-151.0,0.000332,7]
[328344443,1717197044396,-475.59869467,0.000332,2]
[328344444,1717197044406,-151.0,0.000332,7]
[328344445,1717197044416,-151.0,0.000332,7]
[328344446,1717197044425,-168.104128,0.000332,7]
[328344447,1717197044434,-2527.83982935,0.000332,10]
[328344448,1717197044444,-220.087231,0.000332,7]
[328344449,1717197044453,-151.0,0.000332,7]
[328344450,1717197044462,-151.0,0.000332,7]
[328344451,1717197044471,-151.0,0.000332,7]
[328344452,1717197044480,-151.0,0.000332,7]
[328344453,1717197044490,-151.0,0.000332,7]
[328344454,1717197044499,-897.81889387,0.000332,2]
[328344455,1717197044508,-151.0,0.000332,7]
[328344456,1717197044517,-151.0,0.000332,7]
[328344457,1717197044526,-151.0,0.000332,7]
[328344458,1717197044535,-151.0,0.000332,7]
[328344459,1717197044544,-192.606882,0.000332,7]
[328344460,1717197044554,-1153.229946,0.000332,7]
[328344461,1717197044564,-1153.229946,0.000332,7]
[328344462,1717197044573,-4860.54613084,0.000332,2]
[328344463,1717197044582,-151.0,0.000332,7]
[328344464,1717197044591,-151.0,0.000332,7]
[328344465,1717197044601,-15416.474831,0.000332,2]
[328344466,1717197044610,-352.352018,0.000332,7]
[328344467,1717197044620,-352.352018,0.000332,7]
[328344468,1717197044629,-211.6298137,0.00033201,7]
[328344469,1717197044638,-151.77973416,0.00033202,7]
[328344470,1717197044648,-724.90489731,0.00033202,7]
[328344471,1717197044657,-472.30551812,0.00033228,7]
[328344472,1717197044667,-211.6298137,0.00033245,7]
[328344473,1717197044675,-154.72329648,0.00033247,7]
[328344474,1717197044685,-3547.14007142,0.00033255,7]
[328344475,1717197044698,-4456.71264885,0.00033255,7]
[328344476,1717197044708,-292.35378627,0.00033259,7]
[328344477,1717197044717,-500.0,0.00033259,3]
[328344478,1717197044726,-500.0,0.00033259,3]
[328344479,1717197044736,-159.24869842,0.00033261,7]